[Event "Late-Titled-Tuesday-Blitz-April-23-2024"]
[Site "Chess.com"]
[Date "2024.04.23"]
[Round "8"]
[White "sergoy"]
[Black "Hamisandwich"]
[Result "1/2-1/2"]
[WhiteElo "2939"]
[BlackElo "2758"]
[TimeControl "180+1"]
[EndTime "15:30:21 PDT"]
[Termination "Game drawn by repetition"]

1. d4 {[%clk 0:03:00.9]} 1... Nf6 {[%clk 0:03:00.5]} 2. c4 {[%clk 0:03:01.3]}
2... b6 {[%clk 0:03:01.1]} 3. f3 {[%clk 0:03:01]} 3... Nc6 {[%clk 0:02:58.2]} 4.
Nc3 {[%clk 0:02:59.9]} 4... e5 {[%clk 0:02:55.2]} 5. d5 {[%clk 0:03:00.1]} 5...
Na5 {[%clk 0:02:52.9]} 6. e4 {[%clk 0:02:58.7]} 6... Bc5 {[%clk 0:02:40.2]} 7.
a3 {[%clk 0:02:52.5]} 7... Nb7 {[%clk 0:02:37.6]} 8. b4 {[%clk 0:02:49.3]} 8...
Bxg1 {[%clk 0:02:21.8]} 9. Rxg1 {[%clk 0:02:49.3]} 9... a5 {[%clk 0:02:17.9]}
10. Be3 {[%clk 0:02:48.8]} 10... d6 {[%clk 0:02:17]} 11. g4 {[%clk 0:02:43.2]}
11... Ng8 {[%clk 0:02:13.1]} 12. b5 {[%clk 0:02:10.3]} 12... Nc5 {[%clk
0:02:01.2]} 13. Qc2 {[%clk 0:02:04.3]} 13... Qh4+ {[%clk 0:01:55.5]} 14. Qf2
{[%clk 0:02:03.3]} 14... Qxf2+ {[%clk 0:01:51]} 15. Kxf2 {[%clk 0:02:03.5]}
15... h5 {[%clk 0:01:34.1]} 16. h3 {[%clk 0:01:52.6]} 16... h4 {[%clk
0:01:22.3]} 17. f4 {[%clk 0:01:34.2]} 17... exf4 {[%clk 0:01:02.9]} 18. Bxf4
{[%clk 0:01:35.1]} 18... Ne7 {[%clk 0:01:02.5]} 19. Ke3 {[%clk 0:01:35.1]} 19...
Ng6 {[%clk 0:00:59.8]} 20. Bh2 {[%clk 0:01:35]} 20... Nd7 {[%clk 0:00:51.9]} 21.
Be2 {[%clk 0:01:32.6]} 21... Nde5 {[%clk 0:00:44.9]} 22. Raf1 {[%clk 0:01:30.2]}
22... Bd7 {[%clk 0:00:44.7]} 23. Nb1 {[%clk 0:01:28.6]} 23... O-O {[%clk
0:00:37.3]} 24. Nd2 {[%clk 0:01:28.6]} 24... Rae8 {[%clk 0:00:37.3]} 25. Nb3
{[%clk 0:01:28.3]} 25... f6 {[%clk 0:00:26.3]} 26. Nd4 {[%clk 0:01:27.8]} 26...
Nf7 {[%clk 0:00:26.9]} 27. Nf3 {[%clk 0:00:34.1]} 27... Re7 {[%clk 0:00:27]} 28.
Bd3 {[%clk 0:00:31.8]} 28... Rfe8 {[%clk 0:00:27.5]} 29. Kd4 {[%clk 0:00:26.5]}
29... Nge5 {[%clk 0:00:15.1]} 30. Nxe5 {[%clk 0:00:18.5]} 30... Nxe5 {[%clk
0:00:16]} 31. Bc2 {[%clk 0:00:14.4]} 31... Nf7 {[%clk 0:00:14.2]} 32. Rf3 {[%clk
0:00:14.1]} 32... Ng5 {[%clk 0:00:14.1]} 33. Re3 {[%clk 0:00:14.5]} 33... Rf8
{[%clk 0:00:13.3]} 34. Bf4 {[%clk 0:00:13.4]} 34... Be8 {[%clk 0:00:13.8]} 35.
Rf1 {[%clk 0:00:09.2]} 35... Bg6 {[%clk 0:00:10.6]} 36. Bd3 {[%clk 0:00:07.7]}
36... Nf7 {[%clk 0:00:09]} 37. Bh2 {[%clk 0:00:06.4]} 37... Rfe8 {[%clk
0:00:09.4]} 38. Bc2 {[%clk 0:00:06.7]} 38... Ng5 {[%clk 0:00:09.7]} 39. Rfe1
{[%clk 0:00:06.9]} 39... Bh7 {[%clk 0:00:09.1]} 40. Bf4 {[%clk 0:00:07.2]} 40...
Nf7 {[%clk 0:00:09.7]} 41. Rg1 {[%clk 0:00:07.3]} 41... g5 {[%clk 0:00:09.9]}
42. Bh2 {[%clk 0:00:07.2]} 42... Kg7 {[%clk 0:00:10.6]} 43. Rf1 {[%clk
0:00:07.7]} 43... Ne5 {[%clk 0:00:10.1]} 44. Re2 {[%clk 0:00:07.3]} 44... Bg6
{[%clk 0:00:08.2]} 45. Ref2 {[%clk 0:00:07.4]} 45... Nd7 {[%clk 0:00:08.8]} 46.
Re2 {[%clk 0:00:07.2]} 46... Nc5 {[%clk 0:00:09.2]} 47. Rfe1 {[%clk 0:00:07.8]}
47... Nd7 {[%clk 0:00:08.3]} 48. Rf1 {[%clk 0:00:07.6]} 48... Nc5 {[%clk
0:00:08.2]} 49. Rfe1 {[%clk 0:00:08.1]} 49... Rf8 {[%clk 0:00:07.9]} 50. Bg1
{[%clk 0:00:07.4]} 50... Nd7 {[%clk 0:00:08]} 51. Bh2 {[%clk 0:00:07.6]} 51...
Ne5 {[%clk 0:00:08.6]} 52. Rf1 {[%clk 0:00:07.5]} 52... Nd7 {[%clk 0:00:09]} 53.
Rfe1 {[%clk 0:00:07.7]} 53... Rfe8 {[%clk 0:00:09.1]} 54. Bg1 {[%clk 0:00:07.5]}
54... Nc5 {[%clk 0:00:08.7]} 55. Bh2 {[%clk 0:00:07.4]} 1/2-1/2

[Event "Late-Titled-Tuesday-Blitz-April-23-2024"]
[Site "Chess.com"]
[Date "2024.04.23"]
[Round "8"]
[White "temiksmozg"]
[Black "VojtechPlat"]
[Result "0-1"]
[WhiteElo "2713"]
[BlackElo "2873"]
[TimeControl "180+1"]
[EndTime "15:30:21 PDT"]
[Termination "VojtechPlat won by resignation"]

1. e4 {[%clk 0:02:25.1]} 1... c5 {[%clk 0:02:59.5]} 2. Nf3 {[%clk 0:02:24.9]}
2... Nc6 {[%clk 0:02:59.6]} 3. d4 {[%clk 0:02:24.4]} 3... cxd4 {[%clk
0:02:59.9]} 4. Nxd4 {[%clk 0:02:25.3]} 4... e5 {[%clk 0:03:00.2]} 5. Nb5 {[%clk
0:02:24.3]} 5... a6 {[%clk 0:03:00.4]} 6. Nd6+ {[%clk 0:02:24.3]} 6... Bxd6
{[%clk 0:03:01]} 7. Qxd6 {[%clk 0:02:25.2]} 7... Qf6 {[%clk 0:03:01.6]} 8. Qxf6
{[%clk 0:02:19.1]} 8... Nxf6 {[%clk 0:03:01.2]} 9. f3 {[%clk 0:02:19.6]} 9... d5
{[%clk 0:02:58.4]} 10. exd5 {[%clk 0:02:19]} 10... Nb4 {[%clk 0:02:58.4]} 11.
Na3 {[%clk 0:02:14.1]} 11... Nbxd5 {[%clk 0:02:58]} 12. c3 {[%clk 0:02:13.3]}
12... O-O {[%clk 0:02:50.3]} 13. Be2 {[%clk 0:02:08.8]} 13... Bd7 {[%clk
0:02:49.1]} 14. O-O {[%clk 0:02:07.8]} 14... Rfe8 {[%clk 0:02:48.5]} 15. Rd1
{[%clk 0:02:07.6]} 15... Bc6 {[%clk 0:02:47.6]} 16. Bd2 {[%clk 0:02:01.6]} 16...
Rad8 {[%clk 0:02:47.1]} 17. c4 {[%clk 0:02:00.7]} 17... Nf4 {[%clk 0:02:46.4]}
18. Bf1 {[%clk 0:02:00.6]} 18... Ne6 {[%clk 0:02:43.8]} 19. Nc2 {[%clk
0:01:57.5]} 19... e4 {[%clk 0:02:43.4]} 20. fxe4 {[%clk 0:01:52.1]} 20... Nxe4
{[%clk 0:02:42.8]} 21. Ba5 {[%clk 0:01:51.3]} 21... Rc8 {[%clk 0:02:41.4]} 22.
b3 {[%clk 0:01:50.1]} 22... h5 {[%clk 0:02:21.4]} 23. Nb4 {[%clk 0:01:49.9]}
23... h4 {[%clk 0:02:20.7]} 24. Nxc6 {[%clk 0:01:48.6]} 24... Rxc6 {[%clk
0:02:20.5]} 25. Be2 {[%clk 0:01:47]} 25... Nf4 {[%clk 0:02:13.1]} 26. Bf3 {[%clk
0:01:47]} 26... Rg6 {[%clk 0:02:13.1]} 27. Re1 {[%clk 0:01:29.8]} 27... f5
{[%clk 0:02:07.1]} 28. Kf1 {[%clk 0:01:20.9]} 28... Rge6 {[%clk 0:01:37.2]} 29.
Rad1 {[%clk 0:00:51.2]} 29... b6 {[%clk 0:01:36.5]} 30. Bxe4 {[%clk 0:00:51.6]}
30... fxe4 {[%clk 0:01:35.7]} 31. Bd2 {[%clk 0:00:50.5]} 31... e3 {[%clk
0:01:34.8]} 32. Bxe3 {[%clk 0:00:45.9]} 32... Rxe3 {[%clk 0:01:34.6]} 33. Rxe3
{[%clk 0:00:46.8]} 33... Rxe3 {[%clk 0:01:34.5]} 34. Rd4 {[%clk 0:00:39.9]}
34... g5 {[%clk 0:01:33.7]} 35. g3 {[%clk 0:00:38.3]} 35... hxg3 {[%clk
0:01:29.9]} 36. hxg3 {[%clk 0:00:39.2]} 36... Rf3+ {[%clk 0:01:28]} 37. Ke1
{[%clk 0:00:35.7]} 37... Rxg3 {[%clk 0:01:28]} 38. Rd8+ {[%clk 0:00:20.3]} 38...
Kf7 {[%clk 0:01:27.5]} 39. Kf2 {[%clk 0:00:20.4]} 39... Rg2+ {[%clk 0:01:26.5]}
40. Kf3 {[%clk 0:00:20.2]} 40... Rxa2 {[%clk 0:01:26.4]} 41. Rb8 {[%clk
0:00:19.2]} 41... b5 {[%clk 0:01:25.1]} 42. cxb5 {[%clk 0:00:20.1]} 42... axb5
{[%clk 0:01:25.2]} 43. Rxb5 {[%clk 0:00:21]} 43... Kf6 {[%clk 0:01:22.6]} 44.
Rb6+ {[%clk 0:00:18.8]} 44... Ne6 {[%clk 0:01:22.3]} 45. b4 {[%clk 0:00:19]}
45... Rb2 {[%clk 0:01:18.9]} 46. Rb8 {[%clk 0:00:18.3]} 46... Ke5 {[%clk
0:01:17.4]} 47. Rb5+ {[%clk 0:00:16.6]} 47... Kf6 {[%clk 0:01:16.8]} 48. Rb8
{[%clk 0:00:16.7]} 48... Rb3+ {[%clk 0:01:16.9]} 49. Kg4 {[%clk 0:00:16.5]}
49... Ke5 {[%clk 0:01:12.7]} 50. Rb5+ {[%clk 0:00:16]} 50... Ke4 {[%clk
0:01:12.5]} 51. Rb6 {[%clk 0:00:16.2]} 51... Kd5 {[%clk 0:01:10.8]} 52. Rb5+
{[%clk 0:00:15.4]} 52... Kc6 {[%clk 0:01:10.6]} 53. Re5 {[%clk 0:00:12.7]} 53...
Kd7 {[%clk 0:01:09.8]} 54. Rb5 {[%clk 0:00:10.4]} 54... Rb1 {[%clk 0:01:09.5]}
55. Rb6 {[%clk 0:00:09.9]} 55... Rg1+ {[%clk 0:01:08.1]} 56. Kf5 {[%clk
0:00:10]} 56... Rf1+ {[%clk 0:01:08.1]} 57. Ke5 {[%clk 0:00:08.7]} 57... Nf4
{[%clk 0:00:59]} 58. Rb7+ {[%clk 0:00:08.3]} 58... Kc6 {[%clk 0:00:59]} 59. Rg7
{[%clk 0:00:09.2]} 59... Nh3 {[%clk 0:00:58.3]} 60. Rh7 {[%clk 0:00:05.1]} 60...
g4 {[%clk 0:00:56.6]} 61. Rh4 {[%clk 0:00:05.1]} 61... g3 {[%clk 0:00:56]} 62.
Rg4 {[%clk 0:00:04]} 62... Rf3 {[%clk 0:00:53.7]} 63. Ke4 {[%clk 0:00:03.3]}
63... Rf4+ {[%clk 0:00:52.2]} 64. Rxf4 {[%clk 0:00:02.9]} 64... Nxf4 {[%clk
0:00:52.1]} 65. Kf3 {[%clk 0:00:03.4]} 65... Nh5 {[%clk 0:00:49.6]} 0-1

[Event "Late-Titled-Tuesday-Blitz-April-23-2024"]
[Site "Chess.com"]
[Date "2024.04.23"]
[Round "8"]
[White "Skatchkov_V"]
[Black "Durarbayli"]
[Result "1/2-1/2"]
[WhiteElo "2673"]
[BlackElo "2902"]
[TimeControl "180+1"]
[EndTime "15:30:24 PDT"]
[Termination "Game drawn by repetition"]

1. d4 {[%clk 0:03:00.9]} 1... d5 {[%clk 0:02:57.3]} 2. c4 {[%clk 0:03:00.6]}
2... c6 {[%clk 0:02:57.8]} 3. Nc3 {[%clk 0:03:00.2]} 3... Nf6 {[%clk 0:02:57.7]}
4. Nf3 {[%clk 0:03:00.8]} 4... e6 {[%clk 0:02:58.3]} 5. g3 {[%clk 0:03:00.9]}
5... dxc4 {[%clk 0:02:58]} 6. Bg2 {[%clk 0:03:01.6]} 6... b5 {[%clk 0:02:58.2]}
7. O-O {[%clk 0:02:59.7]} 7... Bb7 {[%clk 0:02:56]} 8. Ne5 {[%clk 0:02:59.6]}
8... a6 {[%clk 0:02:45.9]} 9. b3 {[%clk 0:02:59.7]} 9... Bb4 {[%clk 0:02:43.5]}
10. Bb2 {[%clk 0:02:53.8]} 10... Nd5 {[%clk 0:02:42.2]} 11. Nxd5 {[%clk
0:01:45.7]} 11... exd5 {[%clk 0:02:38]} 12. e4 {[%clk 0:01:46.1]} 12... c3
{[%clk 0:02:31.1]} 13. Bc1 {[%clk 0:01:44.3]} 13... Bd6 {[%clk 0:02:23.5]} 14.
exd5 {[%clk 0:01:30.5]} 14... cxd5 {[%clk 0:02:18.1]} 15. Qe1 {[%clk 0:01:30.5]}
15... O-O {[%clk 0:02:10.1]} 16. Qxc3 {[%clk 0:01:30.6]} 16... Bxe5 {[%clk
0:02:10.2]} 17. dxe5 {[%clk 0:01:30.6]} 17... d4 {[%clk 0:02:11.1]} 18. Qc5
{[%clk 0:01:25.6]} 18... Bxg2 {[%clk 0:02:10.9]} 19. Kxg2 {[%clk 0:01:26.4]}
19... Qd7 {[%clk 0:02:05.8]} 20. Bb2 {[%clk 0:01:15.6]} 20... Nc6 {[%clk
0:02:02.9]} 21. Rac1 {[%clk 0:01:14.3]} 21... Rac8 {[%clk 0:02:02.6]} 22. Rfd1
{[%clk 0:01:14.7]} 22... Rfd8 {[%clk 0:01:59]} 23. Bxd4 {[%clk 0:01:03.2]} 23...
Ne7 {[%clk 0:01:15.6]} 24. Qa7 {[%clk 0:00:44.2]} 24... Rxc1 {[%clk 0:00:50.6]}
25. Rxc1 {[%clk 0:00:45.1]} 25... Qd5+ {[%clk 0:00:49.8]} 26. Kg1 {[%clk
0:00:44.9]} 26... Nc6 {[%clk 0:00:48.6]} 27. Qb7 {[%clk 0:00:38.6]} 27... Qxd4
{[%clk 0:00:40.1]} 28. Qxc6 {[%clk 0:00:35.9]} 28... Qxe5 {[%clk 0:00:35.8]} 29.
Qxa6 {[%clk 0:00:34.6]} 29... h5 {[%clk 0:00:35.1]} 30. h4 {[%clk 0:00:23.9]}
30... Rd2 {[%clk 0:00:32.3]} 31. a4 {[%clk 0:00:19.9]} 31... b4 {[%clk
0:00:10.1]} 32. Qc4 {[%clk 0:00:18.8]} 32... Rd4 {[%clk 0:00:03.6]} 33. Qc8+
{[%clk 0:00:14.4]} 33... Kh7 {[%clk 0:00:03.6]} 34. Qc2+ {[%clk 0:00:13.9]}
34... g6 {[%clk 0:00:03.7]} 35. Rd1 {[%clk 0:00:14.1]} 35... Re4 {[%clk
0:00:03.7]} 36. Rd7 {[%clk 0:00:10.7]} 36... Re1+ {[%clk 0:00:02.3]} 37. Kh2
{[%clk 0:00:10]} 37... Qe6 {[%clk 0:00:02.8]} 38. Qc7 {[%clk 0:00:09.2]} 38...
Kg7 {[%clk 0:00:02.4]} 39. a5 {[%clk 0:00:06.3]} 39... Qf5 {[%clk 0:00:02.2]}
40. Rd2 {[%clk 0:00:03.9]} 40... Qe4 {[%clk 0:00:02.2]} 41. f3 {[%clk 0:00:02]}
41... Qxf3 {[%clk 0:00:02.3]} 42. Rg2 {[%clk 0:00:02.7]} 42... Re2 {[%clk
0:00:01.1]} 43. Rxe2 {[%clk 0:00:02.8]} 43... Qxe2+ {[%clk 0:00:02]} 44. Kg1
{[%clk 0:00:03.7]} 44... Qe1+ {[%clk 0:00:02.5]} 45. Kh2 {[%clk 0:00:04.1]}
45... Qe2+ {[%clk 0:00:03.1]} 46. Kh3 {[%clk 0:00:04.7]} 46... Qf1+ {[%clk
0:00:03.3]} 47. Kh2 {[%clk 0:00:05.2]} 47... Qf2+ {[%clk 0:00:03.8]} 48. Kh3
{[%clk 0:00:05.8]} 48... Qg1 {[%clk 0:00:04.3]} 49. Qe5+ {[%clk 0:00:05.4]}
49... Kh7 {[%clk 0:00:04.1]} 50. Qd5 {[%clk 0:00:05.5]} 50... Qf1+ {[%clk
0:00:04.1]} 51. Kh2 {[%clk 0:00:05.6]} 51... Qe2+ {[%clk 0:00:04.1]} 52. Kh3
{[%clk 0:00:05.5]} 52... Qf1+ {[%clk 0:00:04.2]} 53. Kh2 {[%clk 0:00:05.7]}
53... Qe2+ {[%clk 0:00:04.5]} 54. Kh3 {[%clk 0:00:06.2]} 54... Qf1+ {[%clk
0:00:02.2]} 1/2-1/2

[Event "Late-Titled-Tuesday-Blitz-April-23-2024"]
[Site "Chess.com"]
[Date "2024.04.23"]
[Round "8"]
[White "jcibarra"]
[Black "AlexeiShirov"]
[Result "1-0"]
[WhiteElo "2989"]
[BlackElo "2804"]
[TimeControl "180+1"]
[EndTime "15:30:33 PDT"]
[Termination "jcibarra won by resignation"]

1. e4 {[%clk 0:03:00.9]} 1... e5 {[%clk 0:02:58.9]} 2. Nf3 {[%clk 0:03:01.5]}
2... f5 {[%clk 0:02:58.6]} 3. Nxe5 {[%clk 0:03:00.5]} 3... Nc6 {[%clk
0:02:56.9]} 4. d4 {[%clk 0:02:59.9]} 4... Nxe5 {[%clk 0:02:49.7]} 5. dxe5 {[%clk
0:02:59.8]} 5... fxe4 {[%clk 0:02:46.8]} 6. Qd5 {[%clk 0:02:58.1]} 6... Qh4
{[%clk 0:02:17.6]} 7. Bc4 {[%clk 0:02:46]} 7... Ne7 {[%clk 0:02:11.6]} 8. Qf7+
{[%clk 0:02:42.7]} 8... Kd8 {[%clk 0:02:11.3]} 9. Nc3 {[%clk 0:02:39.3]} 9...
Ng6 {[%clk 0:02:07]} 10. Qd5 {[%clk 0:02:14.6]} 10... Bb4 {[%clk 0:01:42.2]} 11.
e6 {[%clk 0:02:10.9]} 11... h6 {[%clk 0:01:23.6]} 12. exd7 {[%clk 0:01:58.7]}
12... Bxd7 {[%clk 0:01:22.1]} 13. Qxb7 {[%clk 0:01:57.6]} 13... e3 {[%clk
0:00:56.4]} 14. Qxa8+ {[%clk 0:01:27.3]} 14... Ke7 {[%clk 0:00:54.8]} 15. Qf3
{[%clk 0:01:21.6]} 15... Qxc4 {[%clk 0:00:46.8]} 16. Qxe3+ {[%clk 0:01:21.7]}
16... Kd8 {[%clk 0:00:39.7]} 17. Qd3 {[%clk 0:01:22.2]} 17... Re8+ {[%clk
0:00:38.6]} 18. Be3 {[%clk 0:01:20.4]} 18... Ne5 {[%clk 0:00:34]} 19. Qxc4
{[%clk 0:01:15.8]} 19... Nxc4 {[%clk 0:00:33.7]} 20. O-O-O {[%clk 0:01:16.3]}
20... Bxc3 {[%clk 0:00:31.2]} 21. bxc3 {[%clk 0:01:15.6]} 21... Kc8 {[%clk
0:00:31.5]} 22. Rhe1 {[%clk 0:01:11.7]} 22... Re6 {[%clk 0:00:30.3]} 23. Bf4
{[%clk 0:00:54.9]} 23... Ra6 {[%clk 0:00:27.3]} 24. Rd4 {[%clk 0:00:49.9]} 24...
Nb6 {[%clk 0:00:21.7]} 25. Re7 {[%clk 0:00:46]} 25... Rxa2 {[%clk 0:00:20.6]}
26. Rxg7 {[%clk 0:00:43.1]} 26... Ra1+ {[%clk 0:00:18.3]} 27. Kd2 {[%clk
0:00:41.9]} 27... a5 {[%clk 0:00:16.6]} 28. Bxh6 {[%clk 0:00:17.6]} 28... Bb5
{[%clk 0:00:15.9]} 29. Rgg4 {[%clk 0:00:14.8]} 29... a4 {[%clk 0:00:14.2]} 30.
Rb4 {[%clk 0:00:14.8]} 30... Bc6 {[%clk 0:00:13.9]} 31. Be3 {[%clk 0:00:14.5]}
31... Nd5 {[%clk 0:00:12.9]} 32. Rg8+ {[%clk 0:00:13.1]} 32... Kd7 {[%clk
0:00:12.7]} 33. Rd4 {[%clk 0:00:13.9]} 33... a3 {[%clk 0:00:11]} 34. Rg7+ {[%clk
0:00:08.5]} 34... Kc8 {[%clk 0:00:10.6]} 35. Rg6 {[%clk 0:00:08.4]} 35... a2
{[%clk 0:00:09.5]} 36. Rxc6 {[%clk 0:00:06.1]} 36... Rd1+ {[%clk 0:00:09.5]} 37.
Kxd1 {[%clk 0:00:06.7]} 37... a1=Q+ {[%clk 0:00:09.9]} 38. Kd2 {[%clk
0:00:07.5]} 38... Ne7 {[%clk 0:00:09.8]} 39. Re6 {[%clk 0:00:07]} 39... Nf5
{[%clk 0:00:09.4]} 40. Rf4 {[%clk 0:00:06.4]} 40... Nd6 {[%clk 0:00:09.3]} 41.
Bc5 {[%clk 0:00:05.5]} 41... Kd7 {[%clk 0:00:09.2]} 42. Rh6 {[%clk 0:00:05.3]}
42... Qf1 {[%clk 0:00:07.8]} 43. Bxd6 {[%clk 0:00:04.6]} 43... cxd6 {[%clk
0:00:07.8]} 44. Rff6 {[%clk 0:00:04.9]} 44... d5 {[%clk 0:00:07.7]} 45. Rf3
{[%clk 0:00:04.4]} 45... Qxg2 {[%clk 0:00:06.8]} 46. Rf7+ {[%clk 0:00:05]} 46...
Ke8 {[%clk 0:00:06.7]} 47. Rhh7 {[%clk 0:00:05.5]} 47... Qg5+ {[%clk 0:00:06.2]}
48. Kd3 {[%clk 0:00:04.6]} 48... Qg6+ {[%clk 0:00:06.1]} 49. Kd4 {[%clk
0:00:04.8]} 49... Qb6+ {[%clk 0:00:05.5]} 50. Kxd5 {[%clk 0:00:05.1]} 50... Qb5+
{[%clk 0:00:05.8]} 51. Kd4 {[%clk 0:00:05.8]} 51... Qb6+ {[%clk 0:00:06.2]} 52.
Kd3 {[%clk 0:00:06.4]} 52... Qd6+ {[%clk 0:00:06.3]} 53. Ke2 {[%clk 0:00:06.7]}
53... Qe6+ {[%clk 0:00:06.4]} 54. Kf3 {[%clk 0:00:06.6]} 54... Qd5+ {[%clk
0:00:05.9]} 55. Kg3 {[%clk 0:00:07.2]} 55... Qg5+ {[%clk 0:00:05.4]} 56. Kh3
{[%clk 0:00:06.5]} 56... Qg6 {[%clk 0:00:04.5]} 57. Re7+ {[%clk 0:00:06.7]}
57... Kf8 {[%clk 0:00:04.3]} 58. Rhf7+ {[%clk 0:00:07]} 58... Kg8 {[%clk
0:00:03.7]} 59. Rg7+ {[%clk 0:00:07.3]} 59... Qxg7 {[%clk 0:00:04]} 60. Rxg7+
{[%clk 0:00:07.9]} 1-0

[Event "Late-Titled-Tuesday-Blitz-April-23-2024"]
[Site "Chess.com"]
[Date "2024.04.23"]
[Round "8"]
[White "topotun"]
[Black "Rud_Makarian"]
[Result "1/2-1/2"]
[WhiteElo "2872"]
[BlackElo "3047"]
[TimeControl "180+1"]
[EndTime "15:30:38 PDT"]
[Termination "Game drawn - insufficient material"]

1. e4 {[%clk 0:03:00.9]} 1... c5 {[%clk 0:02:59.9]} 2. Nf3 {[%clk 0:03:00.9]}
2... d6 {[%clk 0:03:00.6]} 3. d4 {[%clk 0:03:01.3]} 3... cxd4 {[%clk 0:03:01.5]}
4. Nxd4 {[%clk 0:03:02]} 4... Nf6 {[%clk 0:03:02.2]} 5. f3 {[%clk 0:03:02.4]}
5... e6 {[%clk 0:03:02]} 6. c4 {[%clk 0:03:02.4]} 6... a6 {[%clk 0:03:01.9]} 7.
Nc3 {[%clk 0:03:02.4]} 7... b6 {[%clk 0:03:02.5]} 8. Be3 {[%clk 0:03:01.9]} 8...
Bb7 {[%clk 0:03:03.1]} 9. Qd2 {[%clk 0:03:01.8]} 9... Be7 {[%clk 0:03:03.8]} 10.
Be2 {[%clk 0:03:02.3]} 10... O-O {[%clk 0:03:01.9]} 11. O-O {[%clk 0:03:02.6]}
11... Qc7 {[%clk 0:03:02.2]} 12. Rac1 {[%clk 0:03:02.2]} 12... Nbd7 {[%clk
0:03:02.9]} 13. a3 {[%clk 0:03:01.4]} 13... Rac8 {[%clk 0:03:03.4]} 14. b4
{[%clk 0:03:01]} 14... Qb8 {[%clk 0:03:03.4]} 15. Rfd1 {[%clk 0:03:01.6]} 15...
Rfe8 {[%clk 0:03:02.5]} 16. Bf1 {[%clk 0:03:00.5]} 16... d5 {[%clk 0:02:56.5]}
17. cxd5 {[%clk 0:02:47.8]} 17... Bd6 {[%clk 0:02:48.1]} 18. g3 {[%clk
0:02:06.2]} 18... exd5 {[%clk 0:02:34.2]} 19. Nf5 {[%clk 0:02:05.7]} 19... Ne5
{[%clk 0:02:17]} 20. Be2 {[%clk 0:01:49.6]} 20... Bf8 {[%clk 0:01:32.7]} 21.
Nxd5 {[%clk 0:01:45.2]} 21... Nxd5 {[%clk 0:01:32.7]} 22. exd5 {[%clk
0:01:45.5]} 22... Rcd8 {[%clk 0:01:31.9]} 23. Qc3 {[%clk 0:01:08.6]} 23... Rxd5
{[%clk 0:01:24.2]} 24. Rxd5 {[%clk 0:01:07.1]} 24... Bxd5 {[%clk 0:01:24.8]} 25.
Bf4 {[%clk 0:01:06.2]} 25... b5 {[%clk 0:01:11.1]} 26. Kf2 {[%clk 0:01:01.4]}
26... Qb6+ {[%clk 0:01:06]} 27. Qd4 {[%clk 0:00:52.9]} 27... Qe6 {[%clk
0:00:45.5]} 28. Qxe5 {[%clk 0:00:50.2]} 28... Qxe5 {[%clk 0:00:45.4]} 29. Bxe5
{[%clk 0:00:50.8]} 29... Rxe5 {[%clk 0:00:46.1]} 30. Nd4 {[%clk 0:00:45.5]}
30... g6 {[%clk 0:00:40.8]} 31. Rc8 {[%clk 0:00:44.4]} 31... Kg7 {[%clk
0:00:36.9]} 32. Rc7 {[%clk 0:00:39.7]} 32... Re7 {[%clk 0:00:33]} 33. Rxe7
{[%clk 0:00:34.3]} 33... Bxe7 {[%clk 0:00:33.9]} 34. Ke3 {[%clk 0:00:34.8]}
34... Kf6 {[%clk 0:00:32.2]} 35. f4 {[%clk 0:00:35.1]} 35... Bd8 {[%clk
0:00:26.8]} 36. Bf3 {[%clk 0:00:35.2]} 36... Bxf3 {[%clk 0:00:24.3]} 37. Kxf3
{[%clk 0:00:34.3]} 37... Bb6 {[%clk 0:00:22.3]} 38. Ke4 {[%clk 0:00:30.7]} 38...
Ke7 {[%clk 0:00:19]} 39. Kd5 {[%clk 0:00:29.8]} 39... Kd7 {[%clk 0:00:18.7]} 40.
Nf3 {[%clk 0:00:29.4]} 40... f6 {[%clk 0:00:17.4]} 41. Nd4 {[%clk 0:00:26.7]}
41... Bc7 {[%clk 0:00:16.2]} 42. Ne6 {[%clk 0:00:25.1]} 42... Bb6 {[%clk
0:00:13.5]} 43. Nc5+ {[%clk 0:00:24.7]} 43... Ke7 {[%clk 0:00:14.1]} 44. Nxa6
{[%clk 0:00:23.1]} 44... Bg1 {[%clk 0:00:14.1]} 45. h3 {[%clk 0:00:23.5]} 45...
Bh2 {[%clk 0:00:14.5]} 46. g4 {[%clk 0:00:23.4]} 46... Bxf4 {[%clk 0:00:15]} 47.
Nc5 {[%clk 0:00:21.7]} 47... f5 {[%clk 0:00:12.6]} 48. gxf5 {[%clk 0:00:22.6]}
48... gxf5 {[%clk 0:00:13.5]} 49. a4 {[%clk 0:00:22.2]} 49... bxa4 {[%clk
0:00:13.9]} 50. Nxa4 {[%clk 0:00:23.1]} 50... Kf6 {[%clk 0:00:11.7]} 51. b5
{[%clk 0:00:22.5]} 51... Kg5 {[%clk 0:00:11.9]} 52. Ke6 {[%clk 0:00:21.8]} 52...
Bb8 {[%clk 0:00:11.1]} 53. Nc5 {[%clk 0:00:21.4]} 53... f4 {[%clk 0:00:11.6]}
54. Ne4+ {[%clk 0:00:19.1]} 54... Kh4 {[%clk 0:00:11.5]} 55. b6 {[%clk
0:00:12.7]} 55... f3 {[%clk 0:00:09.6]} 56. b7 {[%clk 0:00:10.8]} 56... h5
{[%clk 0:00:02.2]} 57. Kf5 {[%clk 0:00:10.5]} 57... Kxh3 {[%clk 0:00:02.6]} 58.
Ng5+ {[%clk 0:00:10.7]} 58... Kg3 {[%clk 0:00:02.8]} 59. Nxf3 {[%clk 0:00:11.3]}
59... Bc7 {[%clk 0:00:02.7]} 60. Kg5 {[%clk 0:00:10.1]} 60... Kxf3 {[%clk
0:00:03.1]} 61. Kxh5 {[%clk 0:00:10.5]} 61... Bb8 {[%clk 0:00:03.6]} 62. Kg6
{[%clk 0:00:11.1]} 62... Ke4 {[%clk 0:00:04.5]} 63. Kf7 {[%clk 0:00:12]} 63...
Kd5 {[%clk 0:00:05.4]} 64. Ke8 {[%clk 0:00:12.9]} 64... Kc6 {[%clk 0:00:06.2]}
65. Kd8 {[%clk 0:00:13.8]} 65... Kxb7 {[%clk 0:00:07.1]} 1/2-1/2